[Event "Titled Tuesday Blitz January 10 Late 2023"]
[White "Ruperez Benito, Antonio"]
[Black "Pakleza, Zbigniew"]
[WhiteFideId "22245049"]
[BlackFideId "1119290"]
[WhiteElo "2307"]
[BlackElo "2494"]
[Result "0-1"]
[Round "05"]
[TimeControl "180+2"]
[Date "2023.01.10"]
[WhiteClock "0:00:41"]
[BlackClock "0:00:02"]

1. e4 {[%clk 0:00:00]}  d6 {[%clk 0:00:00]} 2. d4 {[%clk 0:03:00]}  Nf6 {[%clk 0:02:58]} 3. Nc3 {[%clk 0:03:00]}  c6 {[%clk 0:02:58]} 4. Nf3 {[%clk 0:03:01]}  Bg4 {[%clk 0:02:58]} 5. h3 {[%clk 0:02:54]}  Bh5 {[%clk 0:02:55]} 6. g4 {[%clk 0:02:54]}  Bg6 {[%clk 0:02:55]} 7. e5 {[%clk 0:02:53]}  Nd5 {[%clk 0:02:55]} 8. Bc4 {[%clk 0:02:53]}  e6 {[%clk 0:02:46]} 9. h4 {[%clk 0:02:48]}  h5 {[%clk 0:02:43]} 10. Ng5 {[%clk 0:02:45]}  dxe5 {[%clk 0:02:40]} 11. dxe5 {[%clk 0:02:35]}  Nxc3 {[%clk 0:02:28]} 12. Qxd8+ {[%clk 0:02:34]}  Kxd8 {[%clk 0:02:21]} 13. bxc3 {[%clk 0:02:30]}  hxg4 {[%clk 0:02:22]} 14. Bf4 {[%clk 0:02:30]}  Nd7 {[%clk 0:02:22]} 15. O-O-O {[%clk 0:02:23]}  Kc7 {[%clk 0:02:09]} 16. Bd3 {[%clk 0:02:19]}  Ba3+ {[%clk 0:02:04]} 17. Kb1 {[%clk 0:01:53]}  Bh5 {[%clk 0:01:26]} 18. Be4 {[%clk 0:01:51]}  Rad8 {[%clk 0:01:27]} 19. Rd3 {[%clk 0:01:45]}  Nc5 {[%clk 0:01:16]} 20. Rg3 {[%clk 0:01:35]}  Nxe4 {[%clk 0:01:13]} 21. Nxe4 {[%clk 0:01:23]}  Be7 {[%clk 0:00:52]} 22. Bg5 {[%clk 0:01:24]}  Bxg5 {[%clk 0:00:20]} 23. hxg5 {[%clk 0:01:06]}  Bg6 {[%clk 0:00:18]} 24. Rxh8 {[%clk 0:01:07]}  Rxh8 {[%clk 0:00:16]} 25. Rxg4 {[%clk 0:01:06]}  Rh2 {[%clk 0:00:17]} 26. f3 {[%clk 0:01:06]}  Bf5 {[%clk 0:00:12]} 27. Rf4 {[%clk 0:01:00]}  Rg2 {[%clk 0:00:11]} 28. Kb2 {[%clk 0:01:00]}  g6 {[%clk 0:00:07]} 29. a4 {[%clk 0:00:58]}  b6 {[%clk 0:00:07]} 30. a5 {[%clk 0:00:56]}  bxa5 {[%clk 0:00:07]} 31. Kb3 {[%clk 0:00:56]}  Kb6 {[%clk 0:00:08]} 32. Nd6 {[%clk 0:00:56]}  Bxc2+ {[%clk 0:00:08]} 33. Ka3 {[%clk 0:00:56]}  Bf5 {[%clk 0:00:06]} 34. Nxf7 {[%clk 0:00:56]}  Kc5 {[%clk 0:00:05]} 35. Nd6 {[%clk 0:00:52]}  Rxg5 {[%clk 0:00:05]} 36. Rc4+ {[%clk 0:00:52]}  Kd5 {[%clk 0:00:03]} 37. Rd4+ {[%clk 0:00:50]}  Kc5 {[%clk 0:00:03]} 38. Rc4+ {[%clk 0:00:50]}  Kb6 {[%clk 0:00:02]} 39. Nc8+ {[%clk 0:00:47]}  Kc7 {[%clk 0:00:03]} 40. Ne7 {[%clk 0:00:47]}  Rg3 {[%clk 0:00:03]} 41. Nxc6 {[%clk 0:00:47]}  Kb6 {[%clk 0:00:03]} 42. Nd4 {[%clk 0:00:47]}  Bd3 {[%clk 0:00:03]} 43. Rc6+ {[%clk 0:00:47]}  Kb7 {[%clk 0:00:02]} 44. Rxe6 {[%clk 0:00:47]}  g5 {[%clk 0:00:02]} 45. Re7+ {[%clk 0:00:48]}  Kc8 {[%clk 0:00:03]} 46. e6 {[%clk 0:00:47]}  g4 {[%clk 0:00:03]} 47. fxg4 {[%clk 0:00:47]}  Bc4 {[%clk 0:00:03]} 48. Rg7 {[%clk 0:00:46]}  Rxc3+ {[%clk 0:00:04]} 49. Kb2 {[%clk 0:00:45]}  Re3 {[%clk 0:00:04]} 50. e7 {[%clk 0:00:46]}  Kd7 {[%clk 0:00:04]} 51. Nf5 {[%clk 0:00:45]}  Re2+ {[%clk 0:00:04]} 52. Kc3 {[%clk 0:00:46]}  Bb5 {[%clk 0:00:04]} 53. Rh7 {[%clk 0:00:46]}  a4 {[%clk 0:00:04]} 54. Rh8 {[%clk 0:00:45]}  a3 {[%clk 0:00:02]} 55. Rd8+ {[%clk 0:00:45]}  Kc7 {[%clk 0:00:02]} 56. Rd1 {[%clk 0:00:43]}  a2 {[%clk 0:00:02]} 57. Ra1 {[%clk 0:00:41]}  Bd7 {[%clk 0:00:02]} 58. Nd4 {[%clk 0:00:42]}  Rg2 {[%clk 0:00:02]} 59. Rxa2 {[%clk 0:00:41]}  Rxa2 {[%clk 0:00:02]} 0-1


[Site "https://www.chess.com"]

[Event "Titled Tuesday Blitz January 10 Late 2023"]
[White "reevecanada"]
[Black "Maksimovic, Bojan"]
[BlackFideId "14408120"]
[WhiteElo "2497"]
[BlackElo "2486"]
[Result "1-0"]
[Round "05"]
[TimeControl "180+2"]
[Date "2023.01.10"]
[WhiteClock "0:01:30"]
[BlackClock "0:00:06"]

1. e4 {[%clk 0:00:00]}  g6 {[%clk 0:00:00]} 2. d4 {[%clk 0:02:59]}  Nf6 {[%clk 0:02:59]} 3. Bd3 {[%clk 0:02:59]}  c5 {[%clk 0:02:59]} 4. e5 {[%clk 0:02:57]}  Nd5 {[%clk 0:02:55]} 5. c4 {[%clk 0:02:56]}  Nc7 {[%clk 0:02:51]} 6. d5 {[%clk 0:02:56]}  e6 {[%clk 0:02:49]} 7. d6 {[%clk 0:02:56]}  Nca6 {[%clk 0:02:46]} 8. h4 {[%clk 0:02:55]}  Nc6 {[%clk 0:02:46]} 9. Nf3 {[%clk 0:02:50]}  Bg7 {[%clk 0:02:46]} 10. Qe2 {[%clk 0:02:48]}  Nab4 {[%clk 0:02:44]} 11. Bf4 {[%clk 0:02:47]}  Nxd3+ {[%clk 0:02:42]} 12. Qxd3 {[%clk 0:02:43]}  h6 {[%clk 0:02:27]} 13. Nc3 {[%clk 0:02:44]}  b6 {[%clk 0:02:22]} 14. Ne4 {[%clk 0:02:39]}  Bb7 {[%clk 0:02:21]} 15. Qe2 {[%clk 0:02:34]}  a5 {[%clk 0:02:20]} 16. h5 {[%clk 0:02:32]}  g5 {[%clk 0:02:02]} 17. Nexg5 {[%clk 0:02:32]}  hxg5 {[%clk 0:02:01]} 18. Bxg5 {[%clk 0:02:28]}  Nd4 {[%clk 0:01:55]} 19. Qd2 {[%clk 0:02:27]}  Nxf3+ {[%clk 0:01:55]} 20. gxf3 {[%clk 0:02:05]}  Qc8 {[%clk 0:01:40]} 21. Qe3 {[%clk 0:02:03]}  Qc6 {[%clk 0:01:40]} 22. h6 {[%clk 0:01:59]}  Bf8 {[%clk 0:01:17]} 23. Rh3 {[%clk 0:01:56]}  f5 {[%clk 0:01:18]} 24. Bf6 {[%clk 0:01:47]}  Rh7 {[%clk 0:00:45]} 25. Qg5 {[%clk 0:01:43]}  Qa4 {[%clk 0:00:42]} 26. Qg6+ {[%clk 0:01:42]}  Rf7 {[%clk 0:00:17]} 27. h7 {[%clk 0:01:41]}  Qb4+ {[%clk 0:00:17]} 28. Kf1 {[%clk 0:01:40]}  Qxc4+ {[%clk 0:00:13]} 29. Kg1 {[%clk 0:01:35]}  Bxf3 {[%clk 0:00:13]} 30. Rxf3 {[%clk 0:01:34]}  Qe4 {[%clk 0:00:10]} 31. Rh3 {[%clk 0:01:32]}  f4 {[%clk 0:00:06]} 32. Qxe4 {[%clk 0:01:30]} 1-0


[Site "https://www.chess.com"]

[Event "Titled Tuesday Blitz January 10 Late 2023"]
[White "Gubajdullin, Alexei"]
[Black "Pein, Jonathan"]
[WhiteFideId "4141202"]
[BlackFideId "417092"]
[WhiteElo "2285"]
[BlackElo "2265"]
[Result "0-1"]
[Round "05"]
[TimeControl "180+2"]
[Date "2023.01.10"]
[WhiteClock "0:00:22"]
[BlackClock "0:00:21"]

1. d4 {[%clk 0:00:00]}  Nf6 {[%clk 0:00:00]} 2. Nf3 {[%clk 0:03:00]}  g6 {[%clk 0:02:54]} 3. Bf4 {[%clk 0:03:00]}  Bg7 {[%clk 0:02:54]} 4. e3 {[%clk 0:02:59]}  O-O {[%clk 0:02:54]} 5. Be2 {[%clk 0:02:59]}  Nh5 {[%clk 0:02:54]} 6. Bg5 {[%clk 0:02:59]}  h6 {[%clk 0:02:45]} 7. Bh4 {[%clk 0:02:58]}  d6 {[%clk 0:02:45]} 8. O-O {[%clk 0:02:58]}  g5 {[%clk 0:02:40]} 9. Nfd2 {[%clk 0:02:55]}  gxh4 {[%clk 0:02:39]} 10. Bxh5 {[%clk 0:02:55]}  e5 {[%clk 0:02:34]} 11. c3 {[%clk 0:02:54]}  Qg5 {[%clk 0:02:34]} 12. Ne4 {[%clk 0:02:54]}  Qe7 {[%clk 0:02:33]} 13. dxe5 {[%clk 0:02:41]}  Qxe5 {[%clk 0:02:28]} 14. Ned2 {[%clk 0:02:33]}  h3 {[%clk 0:02:23]} 15. g3 {[%clk 0:02:25]}  Nc6 {[%clk 0:02:16]} 16. Bg4 {[%clk 0:02:23]}  Qd5 {[%clk 0:02:12]} 17. e4 {[%clk 0:02:18]}  Qg5 {[%clk 0:02:01]} 18. Bxc8 {[%clk 0:02:08]}  Raxc8 {[%clk 0:02:00]} 19. Na3 {[%clk 0:02:02]}  Rfe8 {[%clk 0:02:01]} 20. Nac4 {[%clk 0:01:54]}  d5 {[%clk 0:01:54]} 21. f4 {[%clk 0:01:50]}  Qd8 {[%clk 0:01:46]} 22. Ne3 {[%clk 0:01:47]}  dxe4 {[%clk 0:01:45]} 23. Rf2 {[%clk 0:01:27]}  Qd3 {[%clk 0:01:39]} 24. Qg4 {[%clk 0:01:06]}  Qxe3 {[%clk 0:01:38]} 25. Nf1 {[%clk 0:00:58]}  Qc5 {[%clk 0:01:34]} 26. f5 {[%clk 0:00:48]}  e3 {[%clk 0:01:27]} 27. Re2 {[%clk 0:00:33]}  Ne5 {[%clk 0:01:22]} 28. Qxh3 {[%clk 0:00:33]}  Nf3+ {[%clk 0:01:22]} 29. Kh1 {[%clk 0:00:32]}  Ng5 {[%clk 0:01:00]} 30. Qg2 {[%clk 0:00:32]}  Qxf5 {[%clk 0:00:59]} 31. Nxe3 {[%clk 0:00:31]}  Qe4 {[%clk 0:00:55]} 32. Rae1 {[%clk 0:00:29]}  c6 {[%clk 0:00:49]} 33. Nf5 {[%clk 0:00:26]}  Qxg2+ {[%clk 0:00:38]} 34. Kxg2 {[%clk 0:00:24]}  Rxe2+ {[%clk 0:00:34]} 35. Rxe2 {[%clk 0:00:23]}  Rc7 {[%clk 0:00:31]} 36. Re8+ {[%clk 0:00:23]}  Kh7 {[%clk 0:00:25]} 37. h4 {[%clk 0:00:16]}  Ne6 {[%clk 0:00:25]} 38. Nd6 {[%clk 0:00:15]}  Rd7 {[%clk 0:00:25]} 39. Nxf7 {[%clk 0:00:14]}  Nc7 {[%clk 0:00:23]} 40. Ne5 {[%clk 0:00:13]}  Rd2+ {[%clk 0:00:15]} 41. Kf3 {[%clk 0:00:11]}  Nxe8 {[%clk 0:00:15]} 42. Nc4 {[%clk 0:00:11]}  Rd3+ {[%clk 0:00:15]} 43. Ke4 {[%clk 0:00:10]}  Rd7 {[%clk 0:00:15]} 44. g4 {[%clk 0:00:10]}  Nd6+ {[%clk 0:00:15]} 45. Nxd6 {[%clk 0:00:09]}  Rxd6 {[%clk 0:00:15]} 46. g5 {[%clk 0:00:09]}  hxg5 {[%clk 0:00:16]} 47. hxg5 {[%clk 0:00:09]}  Kg6 {[%clk 0:00:16]} 48. Kf4 {[%clk 0:00:10]}  Rd2 {[%clk 0:00:17]} 49. Kg4 {[%clk 0:00:10]}  Bxc3 {[%clk 0:00:16]} 50. a4 {[%clk 0:00:10]}  Rxb2 {[%clk 0:00:16]} 51. a5 {[%clk 0:00:11]}  Bxa5 {[%clk 0:00:16]} 52. Kf4 {[%clk 0:00:11]}  Rb5 {[%clk 0:00:15]} 53. Ke3 {[%clk 0:00:11]}  Kxg5 {[%clk 0:00:15]} 54. Kd3 {[%clk 0:00:12]}  Bc7 {[%clk 0:00:15]} 55. Kc4 {[%clk 0:00:13]}  Bb8 {[%clk 0:00:15]} 56. Kd3 {[%clk 0:00:13]}  Rb4 {[%clk 0:00:16]} 57. Kc3 {[%clk 0:00:14]}  a5 {[%clk 0:00:16]} 58. Kd3 {[%clk 0:00:14]}  Kf5 {[%clk 0:00:16]} 59. Kc3 {[%clk 0:00:15]}  Ke5 {[%clk 0:00:17]} 60. Kd3 {[%clk 0:00:16]}  Kd5 {[%clk 0:00:17]} 61. Kc3 {[%clk 0:00:16]}  Kc5 {[%clk 0:00:18]} 62. Kd3 {[%clk 0:00:17]}  a4 {[%clk 0:00:18]} 63. Kc3 {[%clk 0:00:18]}  a3 {[%clk 0:00:19]} 64. Kd3 {[%clk 0:00:19]}  a2 {[%clk 0:00:19]} 65. Ke3 {[%clk 0:00:20]}  a1=Q {[%clk 0:00:19]} 66. Kd3 {[%clk 0:00:20]}  Qa3+ {[%clk 0:00:20]} 67. Kc2 {[%clk 0:00:21]}  Rb2+ {[%clk 0:00:20]} 68. Kc1 {[%clk 0:00:22]}  Qa1# {[%clk 0:00:21]} 0-1


[Site "https://www.chess.com"]

[Event "Titled Tuesday Blitz January 10 Late 2023"]
[White "Ezat, Mohamed"]
[Black "Solon, Nathan"]
[WhiteFideId "10600906"]
[BlackFideId "2017229"]
[WhiteElo "2402"]
[BlackElo "2306"]
[Result "1-0"]
[Round "05"]
[TimeControl "180+2"]
[Date "2023.01.10"]
[WhiteClock "0:00:32"]
[BlackClock "0:00:35"]

1. d4 {[%clk 0:00:00]}  Nf6 {[%clk 0:00:00]} 2. c4 {[%clk 0:02:55]}  c5 {[%clk 0:02:59]} 3. d5 {[%clk 0:02:55]}  b5 {[%clk 0:02:59]} 4. cxb5 {[%clk 0:02:54]}  a6 {[%clk 0:02:58]} 5. Nc3 {[%clk 0:02:54]}  axb5 {[%clk 0:02:59]} 6. e4 {[%clk 0:02:53]}  b4 {[%clk 0:02:59]} 7. Nb5 {[%clk 0:02:52]}  d6 {[%clk 0:02:59]} 8. Bf4 {[%clk 0:02:52]}  g5 {[%clk 0:02:58]} 9. Bxg5 {[%clk 0:02:51]}  Nxe4 {[%clk 0:02:57]} 10. Bf4 {[%clk 0:02:50]}  Nf6 {[%clk 0:02:58]} 11. Bd3 {[%clk 0:02:50]}  Bg7 {[%clk 0:02:58]} 12. Nf3 {[%clk 0:02:47]}  Nxd5 {[%clk 0:02:52]} 13. Bc1 {[%clk 0:02:46]}  Nf6 {[%clk 0:02:34]} 14. O-O {[%clk 0:02:01]}  O-O {[%clk 0:02:25]} 15. Nh4 {[%clk 0:01:58]}  Nc6 {[%clk 0:02:25]} 16. Nf5 {[%clk 0:01:57]}  Bxf5 {[%clk 0:02:06]} 17. Bxf5 {[%clk 0:01:56]}  Ra5 {[%clk 0:02:06]} 18. Bd3 {[%clk 0:01:55]}  Ne5 {[%clk 0:01:56]} 19. Be2 {[%clk 0:01:52]}  Qb6 {[%clk 0:01:48]} 20. a4 {[%clk 0:01:51]}  bxa3 {[%clk 0:01:39]} 21. Nxa3 {[%clk 0:01:49]}  Rb8 {[%clk 0:01:39]} 22. f4 {[%clk 0:01:48]}  Nc6 {[%clk 0:01:33]} 23. Nc4 {[%clk 0:01:42]}  Rxa1 {[%clk 0:01:17]} 24. Nxb6 {[%clk 0:01:40]}  Rxb6 {[%clk 0:01:17]} 25. Bc4 {[%clk 0:01:38]}  Nd4 {[%clk 0:01:18]} 26. Qe1 {[%clk 0:01:27]}  d5 {[%clk 0:01:15]} 27. Qxe7 {[%clk 0:01:03]}  dxc4 {[%clk 0:01:10]} 28. Qd8+ {[%clk 0:00:50]}  Bf8 {[%clk 0:00:50]} 29. Qxb6 {[%clk 0:00:50]}  Ne4 {[%clk 0:00:50]} 30. Re1 {[%clk 0:00:48]}  Rxc1 {[%clk 0:00:36]} 31. Rxc1 {[%clk 0:00:40]}  Ne2+ {[%clk 0:00:33]} 32. Kf1 {[%clk 0:00:39]}  Nxc1 {[%clk 0:00:34]} 33. Qc6 {[%clk 0:00:37]}  Nd3 {[%clk 0:00:35]} 34. Qxe4 {[%clk 0:00:32]} 1-0


[Site "https://www.chess.com"]

[Event "Titled Tuesday Blitz January 10 Late 2023"]
[White "Malka, Samuel"]
[Black "Rostomyan, Mikayel"]
[WhiteFideId "20643675"]
[BlackFideId "13313754"]
[WhiteElo "2165"]
[BlackElo "2222"]
[Result "0-1"]
[Round "05"]
[TimeControl "180+2"]
[Date "2023.01.10"]
[WhiteClock "0:00:10"]
[BlackClock "0:00:43"]

1. d4 {[%clk 0:00:00]}  Nf6 {[%clk 0:00:00]} 2. c4 {[%clk 0:03:00]}  c5 {[%clk 0:02:58]} 3. d5 {[%clk 0:03:00]}  b5 {[%clk 0:02:54]} 4. cxb5 {[%clk 0:02:59]}  a6 {[%clk 0:02:46]} 5. e3 {[%clk 0:02:59]}  axb5 {[%clk 0:02:45]} 6. Bxb5 {[%clk 0:03:00]}  Qa5+ {[%clk 0:02:44]} 7. Nc3 {[%clk 0:02:59]}  Bb7 {[%clk 0:02:44]} 8. Bc4 {[%clk 0:02:58]}  e6 {[%clk 0:02:45]} 9. dxe6 {[%clk 0:02:46]}  Bxg2 {[%clk 0:02:39]} 10. exf7+ {[%clk 0:02:43]}  Kd8 {[%clk 0:02:32]} 11. Bd2 {[%clk 0:02:40]}  Bxh1 {[%clk 0:02:31]} 12. f3 {[%clk 0:02:24]}  Qc7 {[%clk 0:02:09]} 13. Qe2 {[%clk 0:02:24]}  Nc6 {[%clk 0:01:52]} 14. O-O-O {[%clk 0:02:22]}  Nb4 {[%clk 0:01:51]} 15. e4 {[%clk 0:02:13]}  d5 {[%clk 0:01:40]} 16. exd5 {[%clk 0:01:45]}  Qxf7 {[%clk 0:01:16]} 17. Nh3 {[%clk 0:01:36]}  Qg6 {[%clk 0:01:14]} 18. Bg5 {[%clk 0:01:30]}  Bxf3 {[%clk 0:01:11]} 19. Qd2 {[%clk 0:01:01]}  Bxd1 {[%clk 0:01:04]} 20. Nxd1 {[%clk 0:00:30]}  Nxa2+ {[%clk 0:01:00]} 21. Bxa2 {[%clk 0:00:18]}  Rxa2 {[%clk 0:00:52]} 22. Qc3 {[%clk 0:00:17]}  Ra1+ {[%clk 0:00:53]} 23. Kd2 {[%clk 0:00:11]}  Be7 {[%clk 0:00:46]} 24. Ne3 {[%clk 0:00:10]}  Ne4+ {[%clk 0:00:43]} 0-1


[Site "https://www.chess.com"]

[Event "Titled Tuesday Blitz January 10 Late 2023"]
[White "Hsu, Li Yang"]
[Black "Herman, Daniel"]
[WhiteFideId "5800080"]
[BlackFideId "30935008"]
[WhiteElo "2427"]
[BlackElo "1956"]
[Result "1/2-1/2"]
[Round "05"]
[TimeControl "180+2"]
[Date "2023.01.10"]
[WhiteClock "0:00:07"]
[BlackClock "0:00:03"]

1. Nf3 {[%clk 0:00:00]}  d5 {[%clk 0:00:00]} 2. g3 {[%clk 0:03:00]}  c6 {[%clk 0:02:59]} 3. Bg2 {[%clk 0:03:01]}  Nf6 {[%clk 0:02:58]} 4. O-O {[%clk 0:03:01]}  Bf5 {[%clk 0:02:58]} 5. d3 {[%clk 0:03:01]}  e6 {[%clk 0:02:58]} 6. c4 {[%clk 0:03:00]}  Bc5 {[%clk 0:02:58]} 7. Nc3 {[%clk 0:03:00]}  O-O {[%clk 0:02:56]} 8. Na4 {[%clk 0:02:58]}  Be7 {[%clk 0:02:55]} 9. Qb3 {[%clk 0:02:56]}  b6 {[%clk 0:02:47]} 10. Bf4 {[%clk 0:02:56]}  Na6 {[%clk 0:02:09]} 11. cxd5 {[%clk 0:02:48]}  exd5 {[%clk 0:02:06]} 12. Rac1 {[%clk 0:02:45]}  Rc8 {[%clk 0:02:00]} 13. Nd4 {[%clk 0:02:42]}  Bd7 {[%clk 0:01:52]} 14. e4 {[%clk 0:02:24]}  Nc5 {[%clk 0:01:51]} 15. Nxc5 {[%clk 0:02:19]}  bxc5 {[%clk 0:01:46]} 16. Ne2 {[%clk 0:02:19]}  c4 {[%clk 0:01:47]} 17. dxc4 {[%clk 0:02:05]}  dxe4 {[%clk 0:01:40]} 18. Rfd1 {[%clk 0:02:02]}  Qb6 {[%clk 0:01:36]} 19. Nc3 {[%clk 0:02:01]}  Bg4 {[%clk 0:01:28]} 20. Rd2 {[%clk 0:01:50]}  Rfe8 {[%clk 0:01:26]} 21. Be3 {[%clk 0:01:47]}  Qa5 {[%clk 0:01:12]} 22. a3 {[%clk 0:01:30]}  Bc5 {[%clk 0:00:50]} 23. Bxc5 {[%clk 0:01:06]}  Qxc5 {[%clk 0:00:36]} 24. Na4 {[%clk 0:00:58]}  Qe5 {[%clk 0:00:36]} 25. Qe3 {[%clk 0:00:57]}  c5 {[%clk 0:00:35]} 26. Nc3 {[%clk 0:00:53]}  Qf5 {[%clk 0:00:33]} 27. Nd5 {[%clk 0:00:51]}  Bf3 {[%clk 0:00:29]} 28. Nxf6+ {[%clk 0:00:47]}  Qxf6 {[%clk 0:00:24]} 29. Re1 {[%clk 0:00:25]}  Bxg2 {[%clk 0:00:25]} 30. Kxg2 {[%clk 0:00:22]}  h5 {[%clk 0:00:21]} 31. h4 {[%clk 0:00:23]}  Qf5 {[%clk 0:00:19]} 32. b4 {[%clk 0:00:22]}  Qg4 {[%clk 0:00:19]} 33. b5 {[%clk 0:00:22]}  Qf5 {[%clk 0:00:17]} 34. Rd5 {[%clk 0:00:21]}  Qf3+ {[%clk 0:00:10]} 35. Kg1 {[%clk 0:00:20]}  Qxe3 {[%clk 0:00:06]} 36. Rxe3 {[%clk 0:00:18]}  g6 {[%clk 0:00:05]} 37. a4 {[%clk 0:00:19]}  f5 {[%clk 0:00:06]} 38. a5 {[%clk 0:00:19]}  Red8 {[%clk 0:00:05]} 39. Rxd8+ {[%clk 0:00:18]}  Rxd8 {[%clk 0:00:05]} 40. Rb3 {[%clk 0:00:17]}  Kf7 {[%clk 0:00:06]} 41. Kf1 {[%clk 0:00:17]}  Ke6 {[%clk 0:00:06]} 42. Ke2 {[%clk 0:00:17]}  Ke5 {[%clk 0:00:05]} 43. b6 {[%clk 0:00:17]}  axb6 {[%clk 0:00:05]} 44. axb6 {[%clk 0:00:17]}  Rb8 {[%clk 0:00:05]} 45. Ke3 {[%clk 0:00:18]}  Kd6 {[%clk 0:00:05]} 46. Kf4 {[%clk 0:00:18]}  Kc6 {[%clk 0:00:05]} 47. Kg5 {[%clk 0:00:18]}  Kb7 {[%clk 0:00:05]} 48. Kxg6 {[%clk 0:00:18]}  Rd8 {[%clk 0:00:05]} 49. Kxf5 {[%clk 0:00:17]}  Rd3 {[%clk 0:00:06]} 50. Rb2 {[%clk 0:00:17]}  e3 {[%clk 0:00:06]} 51. fxe3 {[%clk 0:00:16]}  Rxe3 {[%clk 0:00:05]} 52. Kf4 {[%clk 0:00:16]}  Rc3 {[%clk 0:00:06]} 53. Kg5 {[%clk 0:00:15]}  Rxg3+ {[%clk 0:00:06]} 54. Kxh5 {[%clk 0:00:15]}  Rc3 {[%clk 0:00:06]} 55. Kg5 {[%clk 0:00:16]}  Rxc4 {[%clk 0:00:07]} 56. h5 {[%clk 0:00:15]}  Rc1 {[%clk 0:00:07]} 57. h6 {[%clk 0:00:15]}  Rh1 {[%clk 0:00:08]} 58. Kg6 {[%clk 0:00:15]}  c4 {[%clk 0:00:08]} 59. h7 {[%clk 0:00:15]}  Rh3 {[%clk 0:00:07]} 60. Kg7 {[%clk 0:00:14]}  Rg3+ {[%clk 0:00:04]} 61. Kf7 {[%clk 0:00:11]}  Rf3+ {[%clk 0:00:04]} 62. Kg7 {[%clk 0:00:09]}  Rg3+ {[%clk 0:00:04]} 63. Kh8 {[%clk 0:00:09]}  c3 {[%clk 0:00:05]} 64. Rb4 {[%clk 0:00:08]}  Rh3 {[%clk 0:00:04]} 65. Rg4 {[%clk 0:00:08]}  c2 {[%clk 0:00:04]} 66. Rc4 {[%clk 0:00:06]}  Rh2 {[%clk 0:00:03]} 67. Kg7 {[%clk 0:00:05]}  Rg2+ {[%clk 0:00:02]} 68. Kf6 {[%clk 0:00:05]}  Rf2+ {[%clk 0:00:02]} 69. Kg5 {[%clk 0:00:05]}  Rg2+ {[%clk 0:00:02]} 70. Kh6 {[%clk 0:00:05]}  Rh2+ {[%clk 0:00:03]} 71. Kg6 {[%clk 0:00:05]}  Rg2+ {[%clk 0:00:03]} 72. Kf7 {[%clk 0:00:05]}  Rf2+ {[%clk 0:00:03]} 73. Kg7 {[%clk 0:00:05]}  Rg2+ {[%clk 0:00:03]} 74. Kh8 {[%clk 0:00:06]}  Rh2 {[%clk 0:00:03]} 75. Rc3 {[%clk 0:00:07]}  Kxb6 {[%clk 0:00:04]} 76. Kg7 {[%clk 0:00:07]}  Kb5 {[%clk 0:00:03]} 77. Rxc2 {[%clk 0:00:07]}  Rxc2 {[%clk 0:00:03]} 78. h8=Q {[%clk 0:00:06]}  Rc4 {[%clk 0:00:01]} 79. Kf6 {[%clk 0:00:06]}  Kb4 {[%clk 0:00:02]} 80. Ke5 {[%clk 0:00:06]}  Kb3 {[%clk 0:00:03]} 81. Qf8 {[%clk 0:00:07]}  Rc3 {[%clk 0:00:04]} 82. Qf7+ {[%clk 0:00:07]}  Kb2 {[%clk 0:00:05]} 83. Kd4 {[%clk 0:00:07]}  Rc2 {[%clk 0:00:05]} 84. Qf6 {[%clk 0:00:08]}  Kc1 {[%clk 0:00:06]} 85. Kd3 {[%clk 0:00:08]}  Rd2+ {[%clk 0:00:06]} 86. Ke3 {[%clk 0:00:08]}  Rc2 {[%clk 0:00:06]} 87. Qf5 {[%clk 0:00:09]}  Kb2 {[%clk 0:00:06]} 88. Qf1 {[%clk 0:00:09]}  Kb3 {[%clk 0:00:06]} 89. Qb5+ {[%clk 0:00:09]}  Kc3 {[%clk 0:00:06]} 90. Qc5+ {[%clk 0:00:09]}  Kb2 {[%clk 0:00:05]} 91. Qb4+ {[%clk 0:00:09]}  Kc1 {[%clk 0:00:06]} 92. Kd3 {[%clk 0:00:09]}  Rb2 {[%clk 0:00:05]} 93. Qc3+ {[%clk 0:00:10]}  Kb1 {[%clk 0:00:04]} 94. Qe1+ {[%clk 0:00:09]}  Ka2 {[%clk 0:00:04]} 95. Qa5+ {[%clk 0:00:09]}  Kb1 {[%clk 0:00:04]} 96. Qa4 {[%clk 0:00:10]}  Ra2 {[%clk 0:00:04]} 97. Qb3+ {[%clk 0:00:09]}  Ka1 {[%clk 0:00:04]} 98. Kc3 {[%clk 0:00:09]}  Rc2+ {[%clk 0:00:04]} 99. Kd3 {[%clk 0:00:08]}  Ra2 {[%clk 0:00:02]} 100. Qd1+ {[%clk 0:00:06]}  Kb2 {[%clk 0:00:02]} 101. Qc2+ {[%clk 0:00:06]}  Ka1 {[%clk 0:00:02]} 102. Qc3+ {[%clk 0:00:07]}  Rb2 {[%clk 0:00:02]} 103. Kc4 {[%clk 0:00:07]}  Kb1 {[%clk 0:00:03]} 104. Qd3+ {[%clk 0:00:07]}  Ka1 {[%clk 0:00:03]} 105. Kc3 {[%clk 0:00:07]}  Rb3+ {[%clk 0:00:03]} 106. Kxb3 {[%clk 0:00:07]} 1/2-1/2


[Site "https://www.chess.com"]

[Event "Titled Tuesday Blitz January 10 Late 2023"]
[White "Osmak, Yuliia"]
[Black "Arenas, David"]
[WhiteFideId "14101602"]
[BlackFideId "4403177"]
[WhiteElo "2440"]
[BlackElo "2426"]
[Result "1-0"]
[Round "05"]
[TimeControl "180+2"]
[Date "2023.01.10"]
[WhiteClock "0:00:13"]
[BlackClock "0:00:35"]

1. Nf3 {[%clk 0:00:00]}  c5 {[%clk 0:00:00]} 2. g3 {[%clk 0:03:00]}  Nc6 {[%clk 0:02:58]} 3. Bg2 {[%clk 0:02:56]}  g6 {[%clk 0:02:58]} 4. O-O {[%clk 0:02:55]}  Bg7 {[%clk 0:02:59]} 5. c4 {[%clk 0:02:55]}  d6 {[%clk 0:02:59]} 6. Nc3 {[%clk 0:02:51]}  Bf5 {[%clk 0:02:58]} 7. e4 {[%clk 0:02:51]}  Bg4 {[%clk 0:02:58]} 8. d3 {[%clk 0:02:48]}  Qd7 {[%clk 0:02:56]} 9. Be3 {[%clk 0:02:47]}  Nd4 {[%clk 0:02:53]} 10. Rb1 {[%clk 0:02:43]}  h5 {[%clk 0:02:48]} 11. Bxd4 {[%clk 0:02:22]}  Bxd4 {[%clk 0:02:42]} 12. Ne2 {[%clk 0:02:18]}  Bg7 {[%clk 0:02:37]} 13. b4 {[%clk 0:02:16]}  Bxf3 {[%clk 0:02:32]} 14. Bxf3 {[%clk 0:02:13]}  h4 {[%clk 0:02:18]} 15. bxc5 {[%clk 0:02:13]}  dxc5 {[%clk 0:02:19]} 16. e5 {[%clk 0:01:58]}  hxg3 {[%clk 0:02:18]} 17. fxg3 {[%clk 0:01:57]}  Rb8 {[%clk 0:02:07]} 18. e6 {[%clk 0:01:55]}  Qxe6 {[%clk 0:02:02]} 19. Bxb7 {[%clk 0:01:41]}  Kf8 {[%clk 0:01:52]} 20. Bd5 {[%clk 0:01:40]}  Rxb1 {[%clk 0:01:34]} 21. Qxb1 {[%clk 0:01:09]}  Qe3+ {[%clk 0:00:57]} 22. Kh1 {[%clk 0:00:59]}  Bf6 {[%clk 0:00:57]} 23. Nf4 {[%clk 0:00:55]}  Qxg3 {[%clk 0:00:57]} 24. Qb8+ {[%clk 0:00:25]}  Kg7 {[%clk 0:00:51]} 25. Nh5+ {[%clk 0:00:24]}  Rxh5 {[%clk 0:00:49]} 26. Qxg3 {[%clk 0:00:23]}  Nh6 {[%clk 0:00:48]} 27. Rxf6 {[%clk 0:00:23]}  exf6 {[%clk 0:00:47]} 28. Qc7 {[%clk 0:00:15]}  Ng4 {[%clk 0:00:45]} 29. Qxf7+ {[%clk 0:00:15]}  Kh6 {[%clk 0:00:36]} 30. Qxa7 {[%clk 0:00:15]}  Rxh2+ {[%clk 0:00:37]} 31. Kg1 {[%clk 0:00:13]}  Rb2 {[%clk 0:00:36]} 32. a4 {[%clk 0:00:13]}  Ne5 {[%clk 0:00:35]} 33. Qxc5 {[%clk 0:00:13]} 1-0


[Site "https://www.chess.com"]